bitfinex/quotes_ETHUSD_20250219
["timestamp","ask_amount","ask_price","bid_price","bid_amount"]
[1740005185202,8.11127,2717.7,2717.3,6.06236846]
[1740005186244,4.43159,2717.7,2717.3,6.06236846]
[1740005186444,3.67959,2717.7,2717.3,6.06236846]
[1740005187651,3.67959,2717.7,2717.3,9.74246846]
[1740005192941,3.67959,2717.7,2717.4,0.8016]
[1740005193625,3.71679326,2717.7,2717.4,0.8016]
[1740005195550,3.71679326,2717.7,2717.6,0.74233022]
[1740005196112,0.03720326,2717.7,2717.6,0.74233022]
[1740005196417,3.67946,2717.8,2717.6,0.74233022]
[1740005196630,0.03720326,2717.7,2717.6,0.74233022]
[1740005196958,3.67946,2717.8,2717.6,0.74233022]
[1740005197246,0.03720326,2717.7,2717.6,0.74233022]
[1740005197453,0.7714,2719.1,2718.7,3.67821]
[1740005197749,0.7714,2719.4,2718.8,4.045831]
[1740005197952,0.7714,2719.4,2718.7,3.67814]
[1740005198160,0.7714,2719.4,2718.7,7.35626]
[1740005198482,4.44869,2719.4,2718.7,7.35624]
[1740005198617,5.41379878,2719.4,2718.8,3.67808]
[1740005198813,5.41386878,2719.4,2718.7,3.67812]
[1740005199062,5.41386878,2719.4,2718.9,0.73702101]
[1740005199436,5.41386878,2719.4,2718.7,7.35622]
[1740005200514,2.06105979,2720.4,2719.5,0.8092]
[1740005200719,0.7714,2720.4,2719.7,3.67675]
[1740005201067,0.7714,2720.4,2719.9,3.67657]
[1740005202026,0.1092282,2720.5,2720.4,4.44883]
[1740005202238,0.1092282,2720.5,2720.4,10.93149646]
[1740005202440,2.29666781,2721.4,2720.7,3.67543]
[1740005202674,0.7713,2721.4,2720.7,8.97799846]
[1740005202840,4.44599,2721.4,2720.7,6.04601797]
[1740005203174,3.67474,2721.3,2720.7,6.04601797]
[1740005203378,4.486813,2721.3,2720.7,6.04601797]
[1740005203680,3.0,2721.2,2720.7,6.04601797]
[1740005203883,3.67512,2721.0,2720.7,5.30256846]
[1740005208867,6.67496,2721.2,2720.7,5.30256846]
[1740005209063,7.34991,2721.2,2720.7,5.30256846]
[1740005209263,7.34991,2721.2,2720.7,6.98240331]
[1740005209579,3.67495,2721.2,2720.7,6.98240331]
[1740005210095,7.34989,2721.2,2720.7,6.98240331]
[1740005210296,7.34987,2721.2,2720.7,6.98240331]
[1740005210770,3.67493,2721.2,2720.7,6.98240331]
[1740005210970,3.67499,2721.1,2720.8,0.69824033]
[1740005211414,3.67467,2721.4,2720.9,0.7824]
[1740005211706,3.67485,2721.2,2720.8,0.69824033]
[1740005211905,7.34981,2721.2,2720.8,0.69824033]
[1740005212116,3.67485,2721.2,2720.8,0.69824033]
[1740005212774,3.67485,2721.2,2720.7,1.67983485]
[1740005212992,3.67485,2721.2,2720.6,0.7824]
[1740005213600,0.55,2720.8,2720.4,0.74403873]
[1740005213788,0.55,2720.8,2720.1,0.7919]
[1740005213789,7.35166,2720.5,2720.1,0.7919]
[1740005213987,3.67593,2720.4,2720.1,0.7919]
[1740005214189,3.67593,2720.4,2720.1,1.238744]
[1740005214378,3.67593,2720.4,2720.1,0.7919]
[1740005216007,3.67593,2720.4,2719.8,5.20242873]
[1740005216204,3.67593,2720.4,2719.8,1.52577873]
[1740005216410,3.67628,2720.2,2719.8,1.52577873]
[1740005216582,3.67628,2720.2,2719.8,0.73387873]
[1740005217309,7.35256,2720.2,2719.8,0.73387873]
[1740005218109,3.67628,2720.2,2719.8,0.73387873]
[1740005218417,3.67628,2720.2,2719.6,0.7919]
[1740005218418,3.67647,2720.0,2719.6,0.7919]
[1740005218587,3.67647,2720.0,2719.7,0.72721646]
[1740005219002,3.67642,2720.1,2719.7,0.72721646]
[1740005219183,3.67628,2720.2,2719.7,0.72721646]
[1740005220490,4.22633,2720.1,2719.7,0.72721646]
[1740005220694,3.67647,2720.0,2719.7,0.72721646]
[1740005223514,3.67647,2720.0,2719.6,0.7919]
[1740005223707,3.67668,2719.9,2719.6,1.238817]
[1740005223905,3.67668,2719.9,2719.6,0.7919]
[1740005224804,3.67647,2720.0,2719.6,0.7919]
[1740005225004,7.35306,2720.0,2719.6,0.7919]
[1740005225616,3.67647,2720.0,2719.6,0.7919]
[1740005225820,7.35303,2720.0,2719.6,0.7919]
[1740005226015,7.35304,2720.0,2719.6,0.7919]
[1740005226516,3.67647,2720.0,2719.6,1.31170107]
[1740005226718,3.0,2720.7,2719.6,1.31170107]
[1740005227015,0.55,2720.4,2719.7,4.50227]
[1740005227211,4.22599,2720.4,2719.8,3.67667]
[1740005227577,3.67547,2720.8,2719.8,3.67663]
[1740005227791,4.46955,2721.2,2720.3,3.67599]
[1740005227992,4.46953,2721.2,2720.6,0.8255]
[1740005228318,0.55,2721.1,2720.6,0.8255]
[1740005228477,4.225,2721.1,2720.6,0.8255]
[1740005228822,3.13487877,2721.4,2720.6,0.8255]
[1740005229124,3.67499,2721.1,2720.6,0.8255]
[1740005229616,3.67499,2721.1,2720.6,4.50105]
[1740005229790,3.67499,2721.1,2720.6,0.8255]
[1740005230219,3.67421,2721.7,2720.9,3.67517]
[1740005230418,3.6739,2721.9,2720.9,3.67517]
[1740005230419,3.6739,2721.9,2720.9,0.367517]
[1740005230715,3.6739,2721.9,2720.5,0.74348044]
[1740005230716,3.67425,2721.7,2721.0,8.1657]
[1740005231286,3.0,2721.8,2721.2,0.8156]
[1740005231533,3.6737,2722.1,2721.3,3.67467]
[1740005231820,0.8135,2721.9,2721.3,3.67467]
[1740005232315,3.67377,2722.0,2721.3,3.67467]
[1740005233029,3.67391,2721.9,2721.3,3.67467]
[1740005233923,3.67391,2721.9,2721.3,7.3493]
[1740005234331,3.6737,2722.1,2721.4,3.67453]
[1740005234498,3.6737,2722.1,2721.4,4.491006]
[1740005234836,0.7598,2722.9,2721.5,0.8084]
[1740005235118,3.67282,2722.7,2722.1,0.8084]
[1740005235323,3.67282,2722.7,2722.1,4.48201]
[1740005236425,3.8201071,2723.2,2722.4,3.67315]
[1740005236739,3.8201071,2723.2,2722.6,0.8084]
[1740005236892,0.1479271,2723.2,2722.6,0.8084]
[1740005237098,0.1479271,2723.2,2722.6,3.67283]
[1740005237318,0.1479271,2723.2,2722.7,4.48115]
[1740005237929,0.1479271,2723.2,2722.8,3.67266]
[1740005238133,0.1479271,2723.2,2723.0,4.48081]
[1740005238335,0.1479271,2723.2,2723.1,4.50118]
[1740005238542,0.005,2723.4,2723.2,0.8289]
[1740005239790,0.005,2723.4,2723.2,4.50104]
[1740005240450,0.005,2723.4,2723.2,0.8289]
[1740005241711,0.005,2723.4,2723.1,0.74999539]
[1740005241712,0.005,2723.4,2723.3,4.43991]
[1740005242039,0.005,2723.4,2723.3,4.95890054]
[1740005242713,0.55,2724.5,2723.3,4.95890054]
[1740005242714,3.67056,2724.4,2723.5,3.67162]
[1740005242912,3.67056,2724.4,2723.7,3.67147]
[1740005243116,3.67068,2724.3,2723.8,0.8125]
[1740005243415,3.67088,2724.2,2723.8,0.8125]
[1740005243801,3.67039,2724.5,2723.8,0.8125]
[1740005244310,3.67053,2724.4,2723.8,0.8125]
[1740005244809,3.67053,2724.4,2723.8,4.48381]
[1740005245015,3.67056,2724.4,2723.8,1.655634]
[1740005245337,3.67033,2724.6,2723.8,1.655634]
[1740005245524,3.67033,2724.6,2723.9,3.6712]
[1740005246741,3.67004,2724.8,2724.0,3.67106]
[1740005246949,3.8165371,2725.9,2725.1,3.66947]
[1740005247117,3.8165371,2725.9,2724.6,3.6702]
[1740005247118,0.1479271,2725.9,2725.3,0.7661]
[1740005247350,0.1479271,2725.9,2725.7,3.6687]
[1740005247554,0.1479271,2725.9,2725.8,3.66864]
[1740005247750,0.1479271,2725.9,2725.8,4.43474]
[1740005247952,0.1479271,2725.9,2725.8,1.576451]
[1740005248488,0.1479271,2725.9,2725.8,5.245091]
[1740005248671,0.1479271,2725.9,2725.8,1.576451]
[1740005248843,0.1479271,2725.9,2725.8,0.7661]
[1740005251144,0.1479271,2725.9,2725.8,4.71574]
[1740005251567,0.1479271,2725.9,2725.8,5.4659164]
[1740005253587,0.1479271,2725.9,2725.8,1.7972764]
[1740005254449,0.1479271,2725.9,2725.8,1.5162764]
[1740005254654,0.1479271,2725.9,2725.8,2.03478704]
[1740005254886,0.1479271,2725.9,2725.8,1.26868704]
[1740005255591,0.1479271,2725.9,2725.8,4.93732704]
[1740005256093,0.1479271,2725.9,2725.8,1.26868704]
[1740005256495,0.1479271,2725.9,2725.8,5.69202704]
[1740005259737,1.102555,2727.8,2725.8,2.02338704]
[1740005259927,3.66719,2726.9,2726.1,3.66814]
[1740005260289,3.66731,2726.8,2726.0,3.66837]
[1740005260503,3.66758,2726.6,2726.0,3.66837]
[1740005260732,1.05426668,2727.9,2726.4,0.8257]
[1740005260908,1.05426668,2727.9,2726.6,4.49313]
[1740005261104,3.66632,2727.6,2726.8,3.66728]
[1740005261303,3.66651,2727.4,2726.8,3.6672]
[1740005261507,3.66677,2727.2,2726.6,0.8257]
[1740005261713,3.66677,2727.2,2726.6,4.49327]
[1740005262013,3.66677,2727.2,2726.7,0.477527]
[1740005262228,3.66677,2727.2,2726.9,0.73396854]
[1740005263264,7.33312,2727.4,2726.9,0.73396854]
[1740005263960,3.66651,2727.4,2726.9,0.73396854]
[1740005264338,3.66664,2727.3,2726.9,0.73396854]
[1740005264647,7.33263,2727.6,2727.0,0.7737]
[1740005265167,3.66638,2727.5,2727.0,0.7737]
[1740005266026,3.66614,2727.7,2727.1,0.7737]
[1740005266231,3.66546,2728.2,2727.2,3.6667]
[1740005266232,3.66573,2728.0,2727.2,3.6667]
[1740005266562,3.66582,2727.9,2727.3,0.281]
[1740005267126,3.66596,2727.8,2727.3,0.281]
[1740005267323,3.66573,2728.0,2727.3,0.281]
[1740005267538,3.66586,2727.9,2727.3,0.281]
[1740005267738,3.66586,2727.9,2727.3,1.119816]
[1740005268078,3.66586,2727.9,2727.3,0.838816]
[1740005268279,3.66586,2727.9,2727.3,1.119816]
[1740005268487,3.66573,2728.0,2727.3,1.119816]
[1740005268645,3.66596,2727.8,2727.3,1.119816]
[1740005269084,3.66596,2727.8,2727.4,0.4786576]
[1740005269266,3.66596,2727.8,2727.5,0.7737]
[1740005269672,7.33205,2727.8,2727.5,0.7737]
[1740005270493,3.66596,2727.8,2727.5,0.7737]
[1740005272889,3.66549,2728.2,2727.5,0.7737]
[1740005273049,3.66555,2728.1,2727.5,1.03542778]
[1740005273247,0.8313,2728.3,2727.5,1.03542778]
[1740005273452,3.66535,2728.3,2727.5,4.70177778]
[1740005273783,3.66535,2728.3,2727.6,0.90920296]
[1740005273965,3.66556,2728.1,2727.6,0.90920296]
[1740005274165,7.33122,2728.1,2727.6,0.90920296]
[1740005274373,3.66574,2728.0,2727.6,0.90920296]
[1740005274686,3.66556,2728.1,2727.6,0.90920296]
[1740005274995,7.33122,2728.1,2727.6,0.90920296]
[1740005275201,3.66559,2728.1,2727.7,0.56108907]
[1740005275496,0.005,2728.4,2727.7,0.56108907]
[1740005275497,3.66544,2728.2,2727.7,0.56108907]
[1740005276393,0.005,2728.4,2727.7,0.56108907]
[1740005276687,3.66528,2728.3,2727.7,0.56108907]
[1740005276887,3.66528,2728.3,2727.8,0.42272391]
[1740005277095,3.6654,2728.3,2727.9,0.7823]
[1740005277256,3.66548,2728.2,2727.9,0.7823]
[1740005277666,3.67015,2728.4,2727.9,0.7823]
[1740005278385,0.005,2728.4,2727.9,0.7823]
[1740005278588,0.005,2728.4,2728.0,0.444817]
[1740005278794,0.005,2728.4,2728.1,0.74248461]
[1740005280258,3.67017,2728.4,2728.1,0.74248461]
[1740005281718,0.005,2728.4,2728.1,0.74248461]
[1740005282479,0.005,2728.4,2728.1,4.40791461]
[1740005282680,0.005,2728.4,2728.2,0.44079146]
[1740005283582,0.005,2728.4,2728.1,0.74248461]
[1740005283583,3.67016,2728.4,2728.1,0.74248461]
[1740005284212,0.005,2728.4,2728.1,0.74248461]
[1740005284413,3.67019,2728.4,2728.1,0.74248461]
[1740005286018,0.005,2728.4,2728.1,0.74248461]
[1740005286501,0.005,2728.4,2728.1,4.40794461]
[1740005286694,0.005,2728.4,2728.2,0.80735046]
[1740005292392,0.005,2728.4,2728.1,0.74248461]
[1740005292817,3.67015,2728.4,2728.1,0.74248461]
[1740005294039,0.005,2728.4,2728.1,0.74248461]
[1740005297807,0.005,2728.4,2728.1,4.40800461]
[1740005299748,0.005,2728.4,2728.1,0.74248461]
[1740005299922,0.005,2728.4,2728.2,0.44080846]
[1740005303737,0.005,2728.4,2728.3,0.8322]
[1740005306267,0.005,2728.4,2728.3,4.49748]
[1740005309512,0.7933,2729.5,2728.9,3.66435]
[1740005309796,0.7933,2729.5,2729.0,4.030765]
[1740005309998,0.7933,2729.5,2729.1,3.66413]
[1740005310296,4.45699,2729.5,2729.0,0.366435]
[1740005310470,0.7933,2729.5,2729.0,0.366435]
[1740005310664,4.45698,2729.5,2729.1,0.4799145]
[1740005310886,8.12075,2729.5,2729.1,0.4799145]
[1740005311253,4.45698,2729.5,2729.1,0.4799145]
[1740005311597,3.66383,2729.4,2729.1,0.4799145]
[1740005311781,3.66383,2729.4,2728.9,0.7683]
[1740005311982,4.45698,2729.5,2728.9,4.43274]
[1740005312721,8.12073,2729.5,2728.9,4.43274]
[1740005313018,4.45698,2729.5,2728.9,4.43274]
[1740005313219,0.7933,2729.5,2729.0,3.66426]
[1740005313367,0.7933,2729.5,2729.1,0.8097]
[1740005313573,3.66357,2729.6,2729.2,0.718624]
[1740005314716,3.66368,2729.5,2729.2,0.718624]
[1740005318605,3.66394,2729.3,2729.2,0.718624]
[1740005318810,4.42214,2729.3,2729.2,0.718624]
[1740005319350,4.42214,2729.3,2728.6,0.7663]
[1740005319495,3.66417,2729.2,2728.6,0.7663]
[1740005319694,3.66408,2729.2,2728.6,4.43106]
[1740005319894,3.66408,2729.2,2728.7,0.470606]
[1740005320534,3.66421,2729.1,2728.7,0.470606]
[1740005320746,3.66421,2729.1,2728.6,0.7663]
[1740005321200,3.66402,2729.3,2729.0,0.73326259]
[1740005321941,7.32807,2729.3,2729.0,0.73326259]
[1740005322639,3.66402,2729.3,2729.0,0.73326259]
[1740005323086,7.32806,2729.3,2729.0,0.73326259]
[1740005323381,3.66402,2729.3,2729.0,0.73326259]
[1740005323679,3.66378,2729.5,2729.0,0.73326259]
[1740005323887,3.66388,2729.4,2729.0,0.73326259]
[1740005325791,3.66378,2729.5,2729.0,0.73326259]
[1740005326096,1.213998,2729.5,2729.0,0.73326259]
[1740005326389,3.6644,2729.0,2728.4,4.41805]
[1740005326609,3.6644,2729.0,2728.8,0.72758645]
[1740005328895,4.43611,2729.1,2728.8,0.72758645]
[1740005329066,3.66437,2729.0,2728.8,0.72758645]
[1740005330069,3.66437,2729.0,2728.4,4.41805]
[1740005330271,3.66437,2729.0,2728.5,0.441805]
[1740005333010,3.66437,2729.0,2728.7,0.71675612]
[1740005334595,0.7718,2729.1,2728.7,0.71675612]
[1740005334801,4.43602,2729.1,2728.7,0.71675612]
[1740005338299,4.42091,2728.8,2728.2,5.81080846]
[1740005338508,4.42091,2728.8,2728.4,0.72424338]
[1740005338794,3.66479,2728.7,2728.4,0.72424338]
[1740005339212,3.66479,2728.7,2728.1,0.0992]
[1740005339614,0.7675,2728.6,2728.1,0.0992]
[1740005340033,3.66512,2728.5,2728.1,0.0992]
[1740005340730,3.66515,2728.4,2728.1,0.0992]
[1740005341936,4.43292,2728.2,2728.1,0.0992]
[1740005343206,9.79292,2728.2,2728.1,0.0992]
[1740005343592,12.79292,2728.2,2728.1,0.0992]
[1740005345248,12.97721479,2728.2,2728.1,0.0992]
[1740005345718,16.44450155,2728.2,2728.1,0.0992]
[1740005345912,18.4998092,2728.2,2728.1,0.0992]
[1740005346117,18.4998092,2728.2,2728.1,1e-05]
[1740005346425,3.66663,2727.3,2727.0,0.74261844]
[1740005346625,4.43413,2727.3,2727.0,0.74261844]
[1740005346790,0.7675,2727.3,2726.3,9.03785]
[1740005346994,0.7675,2727.3,2726.3,7.135405]
[1740005346995,4.43492,2726.8,2726.3,7.135405]
[1740005347195,3.66764,2726.6,2725.9,12.97463]
[1740005347417,3.66774,2726.5,2726.2,0.72424953]
[1740005347621,3.66786,2726.4,2726.0,0.718298]
[1740005347895,4.43557,2726.3,2725.6,1.53712268]
[1740005348110,0.7675,2726.3,2725.6,1.53712268]
[1740005348310,0.7675,2726.3,2725.7,3.66869]
[1740005348833,3.66786,2726.4,2725.8,0.7962]
[1740005349033,0.7675,2727.1,2726.0,0.7962]
[1740005349339,0.7675,2727.1,2726.5,4.46387]
[1740005349697,0.7675,2727.1,2726.5,4.46378]
[1740005350402,0.7675,2727.8,2727.0,3.66693]
[1740005350621,4.43353,2727.8,2727.1,3.66685]
[1740005350841,5.77946,2727.8,2727.1,3.66685]
[1740005352943,2.11343,2727.8,2726.9,6.1662]
[1740005353141,0.7675,2727.8,2727.3,0.809]
[1740005353442,0.8074,2728.0,2727.4,3.66648]
[1740005354140,8.1389,2728.0,2727.4,3.66648]
[1740005354504,4.47309,2728.0,2727.4,3.66648]
[1740005354838,3.66555,2728.1,2727.4,4.480697]
[1740005355742,4.45139,2728.3,2727.4,4.480697]
[1740005355743,4.45139,2728.3,2727.6,3.66621]
[1740005355926,4.45139,2728.3,2727.7,0.805]
[1740005356237,0.786,2728.3,2727.7,0.805]
[1740005357218,3.443265,2728.4,2727.7,0.805]
[1740005357454,0.443265,2728.4,2727.7,0.805]
[1740005357653,6.146,2728.6,2727.8,3.66583]
[1740005358152,6.146,2728.6,2727.7,0.805]
[1740005358153,6.146,2728.6,2727.9,3.66581]
[1740005358547,0.786,2728.6,2727.9,3.66581]
[1740005358729,0.786,2728.6,2727.9,7.33153]
[1740005358930,0.786,2728.6,2728.0,0.8029]
[1740005360867,0.8144,2729.0,2728.1,3.66555]
[1740005361465,0.8144,2729.0,2728.2,3.66538]
[1740005362545,3.66455,2728.9,2728.1,4.38800151]
[1740005362720,4.47875,2729.0,2728.1,8.05346151]
[1740005362920,6.17578368,2729.0,2728.1,4.38792151]
[1740005363141,6.17578368,2729.0,2728.2,3.6654]
[1740005363921,2.51143368,2729.0,2728.2,3.6654]
[1740005364121,3.6645,2728.9,2728.2,3.6654]
[1740005364739,2.51143368,2729.0,2728.2,3.6654]
[1740005365459,2.51143368,2729.0,2728.2,4.34789957]
[1740005365954,3.66448,2728.9,2728.2,4.34789957]
[1740005366517,3.66448,2728.9,2728.3,0.8078]
[1740005366723,3.66448,2728.9,2728.3,0.7086]
[1740005369720,5.36139368,2729.0,2728.3,0.7086]
[1740005370365,5.36139368,2729.0,2728.3,4.37388]
[1740005372565,0.8151,2729.2,2728.5,3.66499]
[1740005372759,0.8151,2729.2,2728.7,0.8064]
[1740005375142,3.66402,2729.3,2728.7,0.8064]
[1740005375346,7.32804,2729.3,2728.7,0.8064]
[1740005375543,9.02670268,2729.3,2728.7,0.8064]
[1740005377072,1.69866268,2729.3,2728.7,4.47106]
[1740005377374,4.49512,2729.4,2728.7,4.47106]
[1740005378369,0.8141,2729.9,2729.0,0.7637]
[1740005378556,4.47735,2729.9,2729.2,3.66406]
[1740005378730,5.09476,2729.9,2729.2,3.66406]
[1740005379532,5.09476,2729.9,2729.3,0.7637]
[1740005379928,3.66327,2729.8,2729.3,0.7637]
[1740005382233,3.66341,2729.7,2729.3,1.49803775]
[1740005382430,0.869619,2729.7,2729.3,1.49803775]
[1740005382663,5.07995,2729.9,2729.3,0.7637]
[1740005383233,8.82728676,2730.1,2729.3,0.7637]
[1740005383434,5.36,2730.1,2729.3,0.7637]
[1740005383746,9.02296,2730.1,2729.4,3.66379]
[1740005384245,5.36,2730.1,2729.9,3.663]
[1740005384546,3.46728676,2730.7,2730.0,3.66291]
[1740005384547,5.36,2730.6,2730.0,3.66291]
[1740005384873,6.07293168,2730.6,2729.9,0.7603]
[1740005385181,3.66233,2730.5,2729.9,0.7603]
[1740005385473,0.71293168,2730.6,2730.0,3.66291]
[1740005385646,4.46335,2730.7,2730.0,3.66291]
[1740005386064,3.66221,2730.6,2730.0,3.66291]
[1740005386274,3.66221,2730.6,2730.1,0.8324]
[1740005386840,9.02188,2730.9,2730.1,5.311074]
[1740005387044,3.66199,2730.8,2730.2,4.49509]
[1740005387242,12.68379,2730.9,2730.2,4.49509]
[1740005387454,12.68378,2730.9,2730.2,4.49509]
[1740005387652,9.02188,2730.9,2730.2,4.49509]
[1740005387886,9.02188,2730.9,2730.2,5.3924664]
[1740005388484,3.66195,2730.8,2730.2,1.7297764]
[1740005388683,9.02182,2730.9,2730.3,3.6626]
[1740005388842,3.66193,2730.8,2730.2,1.7297764]
[1740005389042,3.66193,2730.8,2730.2,5.3924364]
[1740005389289,3.66193,2730.8,2730.3,0.98053909]
[1740005389483,3.66174,2731.0,2730.4,0.7787]
[1740005389793,3.66181,2730.9,2730.4,0.7787]
[1740005390187,3.66174,2731.0,2730.4,0.7787]
[1740005390348,3.66195,2730.8,2730.4,0.7787]
[1740005390545,7.32396,2730.8,2730.4,0.7787]
[1740005390855,0.005,2731.1,2730.4,0.54218191]
[1740005391179,0.005,2731.1,2730.8,0.795]
[1740005391388,0.005,2731.1,2730.8,4.45691]
[1740005391690,0.005,2731.1,2730.8,0.795]
[1740005392840,3.6666,2731.1,2730.8,0.795]
[1740005393771,0.005,2731.1,2730.8,0.795]
[1740005394359,0.005,2731.1,2730.8,1.240719]
[1740005394596,3.66655,2731.1,2730.8,1.240719]
[1740005395747,0.005,2731.1,2730.8,0.795]
[1740005396476,3.66658,2731.1,2730.8,0.795]
[1740005397957,3.66658,2731.1,2730.5,0.72418348]
[1740005397958,3.66168,2731.0,2730.5,4.38649348]
[1740005398163,3.66168,2731.0,2730.5,5.19989348]
[1740005398365,3.66168,2731.0,2730.5,5.89955493]
[1740005398563,0.005,2731.1,2730.7,3.66204]
[1740005398893,0.005,2731.1,2730.9,3.66177]
[1740005399100,0.005,2731.1,2731.0,0.8134]
[1740005402219,0.005,2731.1,2731.0,4.47506]
[1740005402420,0.005,2731.1,2731.0,5.288748]
[1740005402577,0.005,2731.1,2731.0,1.627088]
[1740005402978,0.005,2731.1,2731.0,0.8134]
[1740005405522,0.005,2731.1,2730.8,0.8146]
[1740005406316,0.005,2731.1,2730.8,4.47652]
[1740005409423,0.005,2731.1,2730.8,0.8146]
[1740005412938,0.005,2731.1,2730.5,1.42384493]
[1740005412939,3.66654,2731.1,2730.5,1.42384493]
[1740005413100,4.43984,2731.0,2730.5,1.42384493]
[1740005413486,0.7781,2731.0,2730.5,1.42384493]
[1740005413713,4.43982,2731.0,2730.5,1.42384493]
[1740005413933,3.66188,2730.9,2730.5,0.72418348]
[1740005414228,3.66193,2730.8,2730.4,1.31048191]
[1740005415313,3.66193,2730.8,2730.4,2.03789604]
[1740005416831,3.66179,2730.9,2730.4,5.70035604]
[1740005417031,3.66179,2730.9,2730.4,2.03789604]
[1740005417329,0.7891,2730.8,2730.2,0.7938]
[1740005417532,4.4517,2730.3,2729.9,0.7938]
[1740005418332,3.66294,2730.1,2729.8,0.72910169]
[1740005418638,3.66294,2730.1,2729.6,0.7938]
[1740005418843,3.66315,2729.9,2729.6,0.7938]
[1740005419134,4.45225,2729.9,2729.7,0.73915371]
[1740005419303,4.45225,2729.9,2729.4,0.7938]
[1740005419511,4.45225,2729.9,2729.4,1.605984]
[1740005419898,4.45225,2729.9,2729.4,0.812184]
[1740005420364,8.11549,2729.9,2729.4,0.812184]
[1740005420645,8.11549,2729.9,2729.5,0.73533404]
[1740005421123,4.45225,2729.9,2729.2,4.45778]
[1740005421323,4.45225,2729.9,2729.2,6.23514686]
[1740005421637,3.66343,2729.7,2729.1,5.37]
[1740005421805,3.66362,2729.6,2729.1,5.37]
[1740005421999,0.822,2729.5,2729.1,5.37]
[1740005422537,0.822,2729.5,2729.1,0.72828822]
[1740005422721,3.66428,2729.1,2728.5,0.8061]
[1740005422926,0.7672,2729.0,2728.5,1.253216]
[1740005423408,4.43156,2729.0,2728.5,1.253216]
[1740005424161,4.43156,2729.0,2728.6,0.74619635]
[1740005425222,3.66436,2729.0,2728.6,0.74619635]
[1740005425565,3.66407,2729.2,2728.6,4.97750058]
[1740005425566,0.7672,2729.2,2728.6,4.97750058]
[1740005425722,3.66388,2729.4,2728.9,0.7936]
[1740005425918,6.1272,2729.5,2728.9,4.45799]
[1740005426681,6.1272,2729.5,2728.9,0.7936]
[1740005426824,3.66382,2729.4,2728.8,3.66449]
[1740005427026,3.66382,2729.4,2728.9,0.7936]
[1740005428065,3.66357,2729.6,2728.9,4.45806]
[1740005428363,3.66357,2729.6,2729.0,3.66425]
[1740005431527,3.66343,2729.7,2729.1,3.66409]
[1740005431736,3.6633,2729.8,2729.2,4.42416]
[1740005431978,7.32668,2729.8,2729.2,5.233001]
[1740005432386,3.6633,2729.8,2729.2,5.233001]
[1740005432589,3.66342,2729.7,2729.2,5.233001]
[1740005432891,3.6633,2729.8,2729.2,5.233001]
[1740005433042,0.8221,2729.7,2728.9,0.7699]
[1740005433243,3.66396,2729.3,2728.9,0.7699]
[1740005434380,3.66454,2728.9,2728.5,0.7548]
[1740005434584,3.66454,2728.9,2728.3,0.7548]
[1740005434741,3.66454,2728.9,2728.4,0.75195917]
[1740005434946,3.66474,2728.8,2728.4,0.75195917]
[1740005435442,3.66482,2728.7,2728.4,0.75195917]
[1740005435780,3.6649,2728.6,2728.4,0.75195917]
[1740005435942,3.66563,2728.1,2727.5,0.7548]
[1740005436141,0.8159,2728.3,2727.5,1.36728]
[1740005436383,3.66599,2727.8,2727.6,0.74094737]
[1740005436691,3.66599,2727.8,2727.3,0.7548]
[1740005436895,3.66604,2727.8,2727.3,0.7548]
[1740005437250,7.33211,2727.8,2727.3,0.7548]
[1740005437686,4.48194,2727.8,2727.3,0.7548]
[1740005438069,8.14798,2727.8,2727.3,1.196968]
[1740005438270,3.66604,2727.8,2727.4,0.73580853]
[1740005438674,3.66574,2728.0,2727.4,0.73580853]
[1740005439209,3.66515,2728.4,2727.5,0.8041]
[1740005439405,3.66541,2728.3,2727.5,0.8041]
[1740005439785,3.66541,2728.3,2727.5,4.47036]
[1740005440106,3.66541,2728.3,2727.6,0.52061685]
[1740005440336,3.66515,2728.4,2727.6,4.18673685]
[1740005440637,3.66535,2728.3,2727.6,4.18679685]
[1740005440923,3.66581,2728.0,2727.6,0.52061685]
[1740005441233,5.36,2728.6,2727.8,3.66582]
[1740005441415,9.02499,2728.6,2727.9,0.8067]
[1740005441732,3.66509,2728.5,2727.9,0.8067]
[1740005441874,3.66509,2728.5,2728.0,0.447252]
[1740005442872,3.66509,2728.5,2727.9,4.47251]
[1740005445000,3.66509,2728.5,2727.9,3.66581]
[1740005445304,3.66483,2728.7,2727.5,5.92]
[1740005445305,3.66556,2728.1,2727.8,0.8176]
[1740005445978,3.66556,2728.1,2727.5,12.70256]
[1740005446183,3.66556,2728.1,2727.6,1.34383685]
[1740005446608,7.33201,2727.8,2727.4,0.73580853]
[1740005446818,3.66597,2727.8,2727.4,0.73580853]
[1740005447123,3.66597,2727.8,2727.3,0.8176]
[1740005447909,3.6663,2727.6,2727.3,0.8176]
[1740005448101,3.66637,2727.5,2727.3,0.75003672]
[1740005450218,3.6663,2727.6,2727.3,0.75003672]
[1740005450525,3.66641,2727.5,2727.3,0.75003672]
[1740005451226,3.6663,2727.6,2727.3,0.75003672]
[1740005451432,3.66649,2727.4,2727.3,0.75003672]
[1740005451786,3.66649,2727.4,2726.8,6.166]
[1740005452124,3.66664,2727.3,2726.9,1.038336]
[1740005452323,3.66678,2727.2,2726.6,4.39296969]
[1740005454123,4.49851,2727.1,2726.6,0.72542969]
[1740005454329,4.49851,2727.1,2726.5,9.03769]
[1740005454622,4.49851,2727.1,2726.6,3.66754]
[1740005454830,4.49851,2727.1,2726.6,1.402866]
[1740005454997,0.8315,2727.3,2726.5,5.37]
[1740005455325,0.8315,2727.7,2726.9,0.7759]
[1740005455628,7.33311,2727.4,2726.9,0.7759]
[1740005456628,3.6667,2727.3,2726.9,0.7759]
[1740005459744,3.66643,2727.5,2726.9,4.44299]